[Event "Czech Open-E Teams 2022"]
[Site "Pardubice"]
[Date "2022.07.16"]
[Round "5.1"]
[White "Zvolensky, David"]
[Black "Vykouk, Jan"]
[Result "0-1"]
[ECO "B94"]
[WhiteElo "2196"]
[BlackElo "2476"]
[Annotator "ChessBase"]
[PlyCount "118"]
[EventDate "2022.07.14"]
[EventType "team-tourn"]
[EventCountry "CZE"]
[SourceTitle "playchess.com"]
[Source "ChessBase"]
[SourceQuality "1"]
[TimeControl "5400+30"]

1. e4 {[%emt 0:00:03]} c5 {[%emt 0:00:07]} 2. Nf3 {[%emt 0:00:04]} d6 {[%emt 0:00:26]} 3. d4 {[%emt 0:00:06]} cxd4 {[%emt 0:00:07]} 4. Nxd4 {[%emt 0:00:03]} Nf6 {[%emt 0:00:09]} 5. Nc3 {[%emt 0:00:05]} a6 {[%emt 0:00:09]} 6. Bg5 {[%emt 0:00:06]} Nbd7 {[%emt 0:01:16]} 7. f3 {[%emt 0:01:34]} e6 {[%emt 0:00:25]} 8. Qd2 {[%emt 0:00:16]} h6 {[%emt 0:03:14]} 9. Be3 {[%emt 0:00:09]} Qc7 {[%emt 0:00:06]} 10. O-O-O {[%emt 0:00:11]} b5 {[%emt 0:00:50]} 11. a3 {[%emt 0:12:56]} Bb7 {[%emt 0:07:03]} 12. Kb1 {[%emt 0:12:44]} Ne5 {[%emt 0:05:32]} 13. Ndxb5 {[%emt 0:03:17]} axb5 {[%emt 0:01:01]} 14. Nxb5 {[%emt 0:00:02]} Qc6 {[%emt 0:05:50]} 15. Nxd6+ {[%emt 0:00:45]} Bxd6 {[%emt 0:00:08]} 16. Qxd6 {[%emt 0:00:03]} Qxd6 {[%emt 0:00:44]} 17. Rxd6 {[%emt 0:00:03]} O-O {[%emt 0:00:54]} 18. Bb5 {[%emt 0:00:53]} Rfc8 {[%emt 0:01:36]} 19. Bd4 {[%emt 0:06:04]} Nc6 {[%emt 0:06:57]} 20. Rd1 {[%emt 0:08:46]} Ne8 {[%emt 0:08:01]} 21. Rd7 {[%emt 0:00:39]} Nc7 {[%emt 0:00:05]} 22. Bb6 {[%emt 0:04:24]} Nxb5 {[%emt 0:01:00]} 23. Rxb7 {[%emt 0:00:02]} Ne5 {[%emt 0:15:31]} 24. Bd4 {[%emt 0:02:17]} Nd6 {[%emt 0:00:16]} 25. Ra7 {[%emt 0:05:51]} Rxa7 {[%emt 0:02:55]} 26. Bxa7 {[%emt 0:00:02]} Nec4 {[%emt 0:00:10]} 27. a4 {[%emt 0:06:36]} Ra8 {[%emt 0:00:11]} 28. Bc5 {[%emt 0:00:23]} Nb7 {[%emt 0:00:01]} 29. Be7 {[%emt 0:00:34]} Ne3 {[%emt 0:02:24]} 30. Rd7 {[%emt 0:01:38]} Na5 {[%emt 0:01:01]} 31. b4 {[%emt 0:06:52]} Nc6 {[%emt 0:00:10]} 32. Bc5 {[%emt 0:01:02]} Nxg2 {[%emt 0:00:31]} 33. b5 {[%emt 0:02:46]} Ne5 {[%emt 0:00:04]} 34. Rc7 {[%emt 0:01:04]} Rxa4 {[%emt 0:08:38]} 35. b6 {[%emt 0:02:55]} Ra5 {[%emt 0:00:01]} 36. b7 {[%emt 0:04:03]} Rb5+ {[%emt 0:00:05]} 37. Kc1 {[%emt 0:01:29]} Kh7 {[%emt 0:02:31]} 38. Ba7 {[%emt 0:02:59]} Nc6 {[%emt 0:00:32]} 39. Rxc6 {[%emt 0:00:11]} Rxb7 {[%emt 0:00:04]} 40. Bf2 {[%emt 0:00:04]} Nf4 {[%emt 0:00:48]} 41. Rd6 {[%emt 0:03:46]} e5 {[%emt 0:00:17]} 42. c4 {[%emt 0:01:28]} Rb3 {[%emt 0:00:06]} 43. Kc2 {[%emt 0:06:33]} Rxf3 {[%emt 0:00:08]} 44. Bb6 {[%emt 0:00:05]} Ne6 {[%emt 0:00:32]} 45. c5 {[%emt 0:02:01]} Ng5 {[%emt 0:13:57]} 46. Rd3 {[%emt 0:02:49]} Rf2+ {[%emt 0:01:06]} 47. Kd1 {[%emt 0:02:26]} Rf1+ {[%emt 0:03:32]} 48. Ke2 {[%emt 0:00:16]} Rc1 {[%emt 0:00:20]} 49. Rd5 {[%emt 0:00:38]} f6 {[%emt 0:03:45]} 50. Kd2 {[%emt 0:00:01]} Rb1 {[%emt 0:01:07]} 51. Kd3 {[%emt 0:00:12]} Ne6 {[%emt 0:00:59]} 52. Kc4 {[%emt 0:00:32]} Rc1+ {[%emt 0:00:33]} 53. Kb5 {[%emt 0:00:12]} Nd4+ {[%emt 0:00:02]} 54. Ka6 {[%emt 0:00:20]} g5 {[%emt 0:01:14]} 55. Rd6 {[%emt 0:00:57]} Kg6 {[%emt 0:00:17]} 56. Kb7 {[%emt 0:00:11]} Rc4 {[%emt 0:02:52]} 57. Bd8 {[%emt 0:01:30]} Rxc5 {[%emt 0:00:26]} 58. Bxf6 {[%emt 0:00:02]} Nb5 {[%emt 0:04:17]} 59. Bxe5+ {[%emt 0:00:12]} Nxd6+ {[%emt 0:00:06]} 0-1

[Event "Czech Open-E Teams 2022"]
[Site "Pardubice"]
[Date "2022.07.16"]
[Round "5.2"]
[White "Simacek, Pavel"]
[Black "Pychova, Nela"]
[Result "1-0"]
[ECO "E32"]
[WhiteElo "2458"]
[BlackElo "2075"]
[Annotator "ChessBase"]
[PlyCount "63"]
[EventDate "2022.07.14"]
[EventType "team-tourn"]
[EventCountry "CZE"]
[SourceTitle "playchess.com"]
[Source "ChessBase"]
[SourceQuality "1"]
[TimeControl "5400+30"]

1. d4 {[%emt 0:00:08]} Nf6 {[%emt 0:00:07]} 2. c4 {[%emt 0:00:10]} e6 {[%emt 0:00:08]} 3. Nc3 {[%emt 0:00:42]} Bb4 {[%emt 0:00:29]} 4. Qc2 {[%emt 0:00:40]} O-O {[%emt 0:04:20]} 5. e4 {[%emt 0:00:38]} d6 {[%emt 0:03:01]} 6. Nf3 {[%emt 0:10:28]} e5 {[%emt 0:02:39]} 7. Bd3 {[%emt 0:17:49]} Re8 {[%emt 0:02:37]} 8. d5 {[%emt 0:05:12]} a5 {[%emt 0:09:46]} 9. a3 {[%emt 0:05:49]} Bxc3+ {[%emt 0:05:39]} 10. Qxc3 {[%emt 0:00:04]} a4 {[%emt 0:00:29]} 11. Be3 {[%emt 0:03:50]} b6 {[%emt 0:01:18]} 12. h3 {[%emt 0:00:43]} Na6 {[%emt 0:04:11]} 13. Nd2 {[%emt 0:00:14]} Bd7 {[%emt 0:08:12]} 14. g4 {[%emt 0:01:32]} Nc5 {[%emt 0:02:06]} 15. Bc2 {[%emt 0:00:36]} Kh8 {[%emt 0:06:12]} 16. f3 {[%emt 0:01:04]} Ng8 {[%emt 0:05:55]} 17. h4 {[%emt 0:01:53]} f6 {[%emt 0:04:46]} 18. g5 {[%emt 0:05:29]} Rf8 {[%emt 0:02:24]} 19. O-O-O {[%emt 0:05:34]} Nb3+ {[%emt 0:06:09]} 20. Nxb3 {[%emt 0:13:42]} axb3 {[%emt 0:00:09]} 21. Bxb3 {[%emt 0:00:02]} f5 {[%emt 0:03:12]} 22. f4 {[%emt 0:00:18]} exf4 {[%emt 0:08:09]} 23. Bd4 {[%emt 0:00:14]} Qe7 {[%emt 0:01:36]} 24. Rde1 {[%emt 0:04:06]} fxe4 {[%emt 0:03:12]} 25. Rxe4 {[%emt 0:00:15]} Qf7 {[%emt 0:00:11]} 26. h5 {[%emt 0:00:18]} Rfe8 {[%emt 0:05:28]} 27. g6 {[%emt 0:01:49]} Qf8 {[%emt 0:00:44]} 28. h6 {[%emt 0:00:10]} Nxh6 {[%emt 0:00:23]} 29. Rxh6 {[%emt 0:00:15]} Rxe4 {[%emt 0:00:47]} 30. Bxg7+ {[%emt 0:00:06]} Qxg7 {[%emt 0:00:14]} 31. Rxh7+ {[%emt 0:00:04]} Kg8 {[%emt 0:00:05]} 32. Qxg7# 1-0

[Event "Czech Open-E Teams 2022"]
[Site "Pardubice"]
[Date "2022.07.16"]
[Round "5.3"]
[White "Dudek, Vojtech"]
[Black "Kraus, Tomas"]
[Result "1/2-1/2"]
[ECO "A06"]
[WhiteElo "2006"]
[BlackElo "2488"]
[Annotator "ChessBase"]
[PlyCount "49"]
[EventDate "2022.07.14"]
[EventType "team-tourn"]
[EventCountry "CZE"]
[SourceTitle "playchess.com"]
[Source "ChessBase"]
[SourceQuality "1"]
[TimeControl "5400+30"]

1. Nf3 {[%emt 0:00:03]} d5 {[%emt 0:00:26]} 2. b3 {[%emt 0:00:22]} c5 {[%emt 0:01:28]} 3. e3 {[%emt 0:00:24]} Nc6 {[%emt 0:00:29]} 4. Bb2 {[%emt 0:01:03]} Nf6 {[%emt 0:00:50]} 5. d4 {[%emt 0:00:53]} Bg4 {[%emt 0:02:10]} 6. Be2 {[%emt 0:00:26]} e6 {[%emt 0:01:17]} 7. O-O {[%emt 0:00:46]} Rc8 {[%emt 0:03:14]} 8. Nbd2 {[%emt 0:09:05]} cxd4 {[%emt 0:08:52]} 9. Nxd4 {[%emt 0:04:35]} Nxd4 {[%emt 0:04:47]} 10. Bxd4 {[%emt 0:00:19]} Bxe2 {[%emt 0:01:52]} 11. Qxe2 {[%emt 0:00:02]} Rxc2 {[%emt 0:03:31]} 12. Rfc1 {[%emt 0:13:32]} Rxc1+ {[%emt 0:04:11]} 13. Rxc1 {[%emt 0:00:03]} a6 {[%emt 0:00:10]} 14. e4 {[%emt 0:02:01]} Ba3 {[%emt 0:08:24]} 15. Rd1 {[%emt 0:09:51]} O-O {[%emt 0:21:09]} 16. Bxf6 {[%emt 0:05:21]} Qxf6 {[%emt 0:00:04]} 17. exd5 {[%emt 0:00:14]} Qb2 {[%emt 0:00:13]} 18. dxe6 {[%emt 0:05:20]} Qxa2 {[%emt 0:00:50]} 19. exf7+ {[%emt 0:04:42]} Rxf7 {[%emt 0:00:08]} 20. Qc4 {[%emt 0:00:12]} b5 {[%emt 0:03:40]} 21. Qd5 {[%emt 0:00:17]} Qc2 {[%emt 0:05:22]} 22. Re1 {[%emt 0:10:13]} g6 {[%emt 0:09:33]} 23. Ne4 {[%emt 0:06:30]} Be7 {[%emt 0:02:21]} 24. f3 {[%emt 0:04:16]} Qc8 {[%emt 0:03:09]} 25. Re3 {[%emt 0:09:21]} 1/2-1/2

[Event "Czech Open-E Teams 2022"]
[Site "Pardubice"]
[Date "2022.07.16"]
[Round "5.4"]
[White "Studnicka, Tomas"]
[Black "Vlkova, Anezka"]
[Result "1-0"]
[ECO "A40"]
[WhiteElo "2316"]
[BlackElo "1954"]
[Annotator "ChessBase"]
[PlyCount "35"]
[EventDate "2022.07.14"]
[EventType "team-tourn"]
[EventCountry "CZE"]
[SourceTitle "playchess.com"]
[Source "ChessBase"]
[SourceQuality "1"]
[TimeControl "5400+30"]

1. d4 {[%emt 0:00:02]} e6 {[%emt 0:00:08]} 2. Nf3 {[%emt 0:00:02]} Nf6 {[%emt 0:00:09]} 3. Bf4 {[%emt 0:00:03]} d5 {[%emt 0:00:44]} 4. e3 {[%emt 0:00:11]} c5 {[%emt 0:02:00]} 5. c3 {[%emt 0:00:51]} Nc6 {[%emt 0:00:10]} 6. Nbd2 {[%emt 0:00:49]} Bd7 {[%emt 0:01:53]} 7. Bd3 {[%emt 0:00:19]} Be7 {[%emt 0:02:29]} 8. Ne5 {[%emt 0:00:20]} O-O {[%emt 0:04:20]} 9. Qf3 {[%emt 0:01:40]} Rc8 {[%emt 0:11:52]} 10. Qh3 {[%emt 0:03:53]} g6 {[%emt 0:05:02]} 11. Bh6 {[%emt 0:03:17]} Re8 {[%emt 0:00:42]} 12. Qf3 {[%emt 0:06:17]} cxd4 {[%emt 0:09:38]} 13. exd4 {[%emt 0:00:51]} Bd6 {[%emt 0:06:04]} 14. Bf4 {[%emt 0:07:57]} Bf8 {[%emt 0:10:09]} 15. Bg5 {[%emt 0:03:18]} Be7 {[%emt 0:00:33]} 16. Bxf6 {[%emt 0:00:12]} Bxf6 {[%emt 0:02:56]} 17. Nxd7 {[%emt 0:00:05]} Bxd4 {[%emt 0:00:59]} 18. cxd4 {[%emt 0:00:09]} 1-0

[Event "Czech Open-E Teams 2022"]
[Site "Pardubice"]
[Date "2022.07.16"]
[Round "5.5"]
[White "Stalmach, Richard"]
[Black "Cerveny, Martin"]
[Result "1-0"]
[ECO "D15"]
[WhiteElo "2363"]
[BlackElo "2396"]
[Annotator "ChessBase"]
[PlyCount "105"]
[EventDate "2022.07.14"]
[EventType "team-tourn"]
[EventCountry "CZE"]
[SourceTitle "playchess.com"]
[Source "ChessBase"]
[SourceQuality "1"]
[TimeControl "5400+30"]

1. d4 {[%emt 0:00:02]} d5 {[%emt 0:00:00]} 2. c4 {[%emt 0:00:06]} c6 {[%emt 0:00:14]} 3. Nf3 {[%emt 0:00:04]} Nf6 {[%emt 0:00:06]} 4. Nc3 {[%emt 0:00:05]} a6 {[%emt 0:00:47]} 5. e3 {[%emt 0:00:12]} b5 {[%emt 0:03:08]} 6. b3 {[%emt 0:01:08]} Bg4 {[%emt 0:01:28]} 7. h3 {[%emt 0:00:46]} Bxf3 {[%emt 0:00:49]} 8. gxf3 {[%emt 0:00:08]} e6 {[%emt 0:01:21]} 9. c5 {[%emt 0:00:25]} Be7 {[%emt 0:02:13]} 10. f4 {[%emt 0:01:55]} a5 {[%emt 0:06:39]} 11. Bd3 {[%emt 0:05:26]} g6 {[%emt 0:02:50]} 12. Qc2 {[%emt 0:03:52]} Na6 {[%emt 0:05:51]} 13. a3 {[%emt 0:08:20]} O-O {[%emt 0:00:09]} 14. Bd2 {[%emt 0:01:19]} Kh8 {[%emt 0:05:51]} 15. Ne2 {[%emt 0:00:55]} Nc7 {[%emt 0:03:12]} 16. Ng1 {[%emt 0:02:22]} Nce8 {[%emt 0:03:30]} 17. Nf3 {[%emt 0:02:20]} Ng7 {[%emt 0:00:44]} 18. a4 {[%emt 0:04:22]} b4 {[%emt 0:00:17]} 19. O-O-O {[%emt 0:00:41]} Qc7 {[%emt 0:02:41]} 20. Rdg1 {[%emt 0:02:26]} Nf5 {[%emt 0:01:51]} 21. Ne5 {[%emt 0:01:52]} Nh5 {[%emt 0:04:32]} 22. h4 {[%emt 0:10:58]} Bf6 {[%emt 0:07:53]} 23. Be2 {[%emt 0:08:30]} Nfg7 {[%emt 0:01:20]} 24. Ng4 {[%emt 0:03:08]} Be7 {[%emt 0:00:21]} 25. Rg2 {[%emt 0:00:49]} Rac8 {[%emt 0:00:38]} 26. Qd1 {[%emt 0:01:36]} Qd8 {[%emt 0:01:32]} 27. Kb1 {[%emt 0:04:48]} Qe8 {[%emt 0:00:25]} 28. Rhg1 {[%emt 0:01:49]} f6 {[%emt 0:03:04]} 29. Ka2 {[%emt 0:04:24]} Nf5 {[%emt 0:02:36]} 30. Bd3 {[%emt 0:02:33]} Qf7 {[%emt 0:04:49]} 31. Nh6 {[%emt 0:02:38]} Nxh6 {[%emt 0:05:23]} 32. Rxg6 {[%emt 0:00:54]} f5 {[%emt 0:01:28]} 33. Qxh5 {[%emt 0:03:31]} hxg6 {[%emt 0:08:06]} 34. Rxg6 {[%emt 0:03:20]} Qxg6 {[%emt 0:00:07]} 35. Qxg6 {[%emt 0:00:03]} Rf6 {[%emt 0:00:06]} 36. Qh5 {[%emt 0:00:52]} Kg7 {[%emt 0:00:29]} 37. Ba6 {[%emt 0:05:01]} Rb8 {[%emt 0:01:30]} 38. Qe2 {[%emt 0:02:28]} Rg6 {[%emt 0:00:05]} 39. Bb5 {[%emt 0:00:22]} Rg2 {[%emt 0:01:17]} 40. Qf1 {[%emt 0:06:45]} Rh2 {[%emt 0:00:49]} 41. Be1 {[%emt 0:00:39]} Ng4 {[%emt 0:00:55]} 42. Be2 {[%emt 0:01:14]} Rh8 {[%emt 0:05:32]} 43. f3 Bxh4 44. fxg4 {[%emt 0:05:09]} Bxe1 {[%emt 0:05:13]} 45. Qxe1 {[%emt 0:01:52]} Rh1 {[%emt 0:00:55]} 46. Qd2 {[%emt 0:00:34]} fxg4 {[%emt 0:02:15]} 47. e4 {[%emt 0:00:03]} R8h2 {[%emt 0:01:52]} 48. f5 {[%emt 0:00:11]} Kf8 {[%emt 0:01:11]} 49. fxe6 {[%emt 0:00:03]} Ke8 {[%emt 0:03:56]} 50. exd5 {[%emt 0:00:02]} cxd5 {[%emt 0:00:20]} 51. c6 {[%emt 0:00:28]} Kd8 {[%emt 0:02:14]} 52. Qg5+ Kc8 53. Qxg4 {[%emt 0:01:43]} 1-0

[Event "Czech Open-E Teams 2022"]
[Site "Pardubice"]
[Date "2022.07.16"]
[Round "5.6"]
[White "Szotkowski, Jakub"]
[Black "Mica, Marek"]
[Result "1/2-1/2"]
[ECO "E04"]
[WhiteElo "2344"]
[BlackElo "2304"]
[Annotator "ChessBase"]
[PlyCount "126"]
[EventDate "2022.07.14"]
[EventType "team-tourn"]
[EventCountry "CZE"]
[SourceTitle "playchess.com"]
[Source "ChessBase"]
[SourceQuality "1"]
[TimeControl "5400+30"]

1. d4 {[%emt 0:00:24]} Nf6 {[%emt 0:00:13]} 2. c4 {[%emt 0:00:09]} e6 {[%emt 0:00:13]} 3. g3 {[%emt 0:00:17]} d5 {[%emt 0:00:38]} 4. Nf3 {[%emt 0:00:47]} dxc4 {[%emt 0:03:33]} 5. Bg2 {[%emt 0:00:17]} Nc6 {[%emt 0:03:32]} 6. O-O {[%emt 0:01:02]} Rb8 {[%emt 0:01:31]} 7. a4 {[%emt 0:03:21]} a6 {[%emt 0:03:45]} 8. e3 {[%emt 0:05:25]} b5 {[%emt 0:11:53]} 9. axb5 {[%emt 0:00:05]} axb5 {[%emt 0:00:05]} 10. b3 {[%emt 0:00:17]} cxb3 {[%emt 0:00:30]} 11. Qxb3 {[%emt 0:00:06]} Bd7 {[%emt 0:02:51]} 12. Bb2 {[%emt 0:12:32]} Be7 {[%emt 0:01:16]} 13. Rc1 {[%emt 0:04:34]} O-O {[%emt 0:03:27]} 14. Ne1 {[%emt 0:00:42]} Nb4 {[%emt 0:10:44]} 15. e4 {[%emt 0:09:18]} Ra8 {[%emt 0:08:02]} 16. Rxa8 {[%emt 0:02:33]} Qxa8 {[%emt 0:00:14]} 17. Rxc7 {[%emt 0:00:13]} Qb8 {[%emt 0:02:27]} 18. Rc1 {[%emt 0:03:25]} Rc8 {[%emt 0:01:24]} 19. Rd1 {[%emt 0:04:58]} Nc6 {[%emt 0:05:47]} 20. d5 {[%emt 0:16:34]} Na5 {[%emt 0:01:47]} 21. Qa2 {[%emt 0:02:34]} Nc4 {[%emt 0:01:27]} 22. Nd3 {[%emt 0:00:37]} b4 {[%emt 0:05:33]} 23. Nd2 {[%emt 0:02:00]} exd5 {[%emt 0:01:41]} 24. exd5 {[%emt 0:00:44]} Nxb2 {[%emt 0:03:50]} 25. Qxb2 {[%emt 0:00:22]} Bd6 {[%emt 0:01:06]} 26. Qd4 {[%emt 0:01:39]} Ba4 {[%emt 0:02:51]} 27. Rb1 {[%emt 0:01:52]} Bc2 {[%emt 0:00:55]} 28. Rxb4 {[%emt 0:00:04]} Bxb4 {[%emt 0:01:44]} 29. Nxb4 {[%emt 0:00:07]} Ba4 {[%emt 0:01:05]} 30. Nd3 {[%emt 0:03:23]} Bb5 {[%emt 0:01:19]} 31. Bf3 {[%emt 0:04:17]} Bxd3 {[%emt 0:05:11]} 32. Qxd3 {[%emt 0:00:05]} Qd6 {[%emt 0:01:46]} 33. Kg2 {[%emt 0:01:06]} Nxd5 {[%emt 0:03:24]} 34. Qxd5 {[%emt 0:03:24]} Qxd5 {[%emt 0:00:11]} 35. Bxd5 {[%emt 0:00:02]} Rd8 {[%emt 0:00:07]} 36. Bxf7+ {[%emt 0:00:05]} Kxf7 {[%emt 0:00:07]} 37. Nc4 {[%emt 0:00:22]} g5 {[%emt 0:01:54]} 38. h3 {[%emt 0:05:36]} h5 {[%emt 0:00:54]} 39. Ne3 Rd2 40. g4 {[%emt 0:02:38]} h4 {[%emt 0:03:01]} 41. Nc4 {[%emt 0:00:34]} Rd4 {[%emt 0:01:13]} 42. Ne5+ {[%emt 0:00:32]} Kf6 {[%emt 0:00:27]} 43. Nf3 {[%emt 0:00:48]} Rd3 {[%emt 0:00:57]} 44. Ne1 {[%emt 0:00:45]} Rb3 {[%emt 0:00:55]} 45. Nf3 {[%emt 0:02:40]} Rc3 {[%emt 0:01:07]} 46. Nd2 {[%emt 0:00:17]} Ke5 {[%emt 0:00:47]} 47. Nf3+ {[%emt 0:00:04]} Kf4 {[%emt 0:00:35]} 48. Ng1 {[%emt 0:00:05]} Ke4 {[%emt 0:00:57]} 49. Ne2 {[%emt 0:00:30]} Ra3 {[%emt 0:00:30]} 50. Ng1 {[%emt 0:00:10]} Rc3 {[%emt 0:01:03]} 51. Ne2 {[%emt 0:00:09]} Rb3 {[%emt 0:00:19]} 52. Ng1 {[%emt 0:00:09]} Ra3 {[%emt 0:00:41]} 53. Ne2 {[%emt 0:00:11]} Kd3 {[%emt 0:01:24]} 54. Ng1 {[%emt 0:00:11]} Ra5 {[%emt 0:00:27]} 55. Nf3 {[%emt 0:00:27]} Rb5 {[%emt 0:00:42]} 56. Ng1 {[%emt 0:00:13]} Rb8 {[%emt 0:01:21]} 57. Nf3 {[%emt 0:00:10]} Rg8 {[%emt 0:00:37]} 58. Ng1 {[%emt 0:00:37]} Rf8 {[%emt 0:00:28]} 59. Nf3 {[%emt 0:00:10]} Ke2 {[%emt 0:01:11]} 60. Ng1+ {[%emt 0:00:06]} Ke1 {[%emt 0:00:36]} 61. Nf3+ {[%emt 0:00:53]} Ke2 {[%emt 0:01:12]} 62. Ng1+ {[%emt 0:00:18]} Ke1 {[%emt 0:00:07]} 63. Nf3+ {[%emt 0:00:21]} Ke2 {[%emt 0:00:54]} 1/2-1/2

[Event "Czech Open-E Teams 2022"]
[Site "Pardubice"]
[Date "2022.07.16"]
[Round "5.7"]
[White "Frank, Adam"]
[Black "Chytilek, Roman"]
[Result "1-0"]
[ECO "C07"]
[WhiteElo "2313"]
[BlackElo "2317"]
[Annotator "ChessBase"]
[PlyCount "77"]
[EventDate "2022.07.14"]
[EventType "team-tourn"]
[EventCountry "CZE"]
[SourceTitle "playchess.com"]
[Source "ChessBase"]
[SourceQuality "1"]
[TimeControl "5400+30"]

1. e4 e6 {[%emt 0:02:40]} 2. d4 {[%emt 0:00:08]} d5 {[%emt 0:00:04]} 3. Nd2 c5 {[%emt 0:00:12]} 4. exd5 {[%emt 0:00:07]} Qxd5 {[%emt 0:00:10]} 5. Ngf3 {[%emt 0:00:04]} cxd4 {[%emt 0:00:15]} 6. Bc4 {[%emt 0:00:03]} Qd7 {[%emt 0:00:12]} 7. O-O Nf6 {[%emt 0:01:27]} 8. Nb3 {[%emt 0:00:21]} Nc6 {[%emt 0:00:12]} 9. Nbxd4 {[%emt 0:00:04]} Nxd4 {[%emt 0:00:12]} 10. Nxd4 {[%emt 0:00:04]} a6 {[%emt 0:00:24]} 11. Bb3 {[%emt 0:02:45]} Bc5 {[%emt 0:02:06]} 12. c3 {[%emt 0:03:31]} b6 {[%emt 0:02:57]} 13. Re1 {[%emt 0:10:47]} Bxd4 {[%emt 0:12:58]} 14. cxd4 {[%emt 0:00:25]} Bb7 {[%emt 0:00:16]} 15. Bf4 {[%emt 0:06:44]} Bd5 {[%emt 0:07:15]} 16. Bc2 {[%emt 0:03:33]} Qb7 {[%emt 0:12:40]} 17. f3 {[%emt 0:02:17]} Nh5 {[%emt 0:02:58]} 18. Be3 {[%emt 0:10:56]} f5 {[%emt 0:09:52]} 19. Bb3 {[%emt 0:05:35]} O-O {[%emt 0:05:28]} 20. Bf2 {[%emt 0:02:53]} Rae8 {[%emt 0:07:46]} 21. Bxd5 {[%emt 0:13:01]} Qxd5 {[%emt 0:00:45]} 22. Qa4 {[%emt 0:00:05]} Nf4 {[%emt 0:27:00]} 23. Qxa6 {[%emt 0:04:51]} Rf6 {[%emt 0:01:03]} 24. Qxb6 {[%emt 0:12:49]} Nxg2 {[%emt 0:02:37]} 25. Kxg2 {[%emt 0:00:10]} Rg6+ {[%emt 0:00:05]} 26. Bg3 {[%emt 0:00:12]} f4 {[%emt 0:00:12]} 27. Re5 {[%emt 0:01:37]} Qa8 {[%emt 0:00:46]} 28. Ra5 {[%emt 0:01:29]} Qc8 {[%emt 0:00:39]} 29. Rc5 {[%emt 0:00:03]} Qd7 {[%emt 0:01:12]} 30. Rc7 {[%emt 0:00:23]} Qd8 {[%emt 0:00:23]} 31. Qc5 {[%emt 0:13:39]} fxg3 {[%emt 0:00:31]} 32. hxg3 {[%emt 0:02:19]} Rg5 {[%emt 0:00:40]} 33. Qc6 {[%emt 0:02:13]} Rd5 {[%emt 0:00:25]} 34. Rc1 {[%emt 0:01:56]} Rxd4 {[%emt 0:00:31]} 35. Rc8 {[%emt 0:00:04]} Rd2+ {[%emt 0:00:23]} 36. Kh3 {[%emt 0:00:03]} Qxc8 {[%emt 0:00:22]} 37. Qxc8 {[%emt 0:00:03]} Rxc8 {[%emt 0:00:05]} 38. Rxc8+ {[%emt 0:00:02]} Kf7 {[%emt 0:00:12]} 39. Rb8 {[%emt 0:00:03]} 1-0

[Event "Czech Open-E Teams 2022"]
[Site "Pardubice"]
[Date "2022.07.16"]
[Round "5.8"]
[White "Vyskocil, Neklan"]
[Black "Gnojek, Petr"]
[Result "0-1"]
[ECO "B07"]
[WhiteElo "2286"]
[BlackElo "2295"]
[Annotator "ChessBase"]
[PlyCount "96"]
[EventDate "2022.07.14"]
[EventType "team-tourn"]
[EventCountry "CZE"]
[SourceTitle "playchess.com"]
[Source "ChessBase"]
[SourceQuality "1"]
[TimeControl "5400+30"]

1. e4 {[%emt 0:06:20]} d6 {[%emt 0:00:33]} 2. d4 {[%emt 0:00:17]} Nf6 {[%emt 0:00:10]} 3. Nc3 {[%emt 0:00:10]} g6 {[%emt 0:00:08]} 4. g3 {[%emt 0:01:04]} Bg7 {[%emt 0:00:14]} 5. Bg2 {[%emt 0:00:10]} O-O {[%emt 0:00:17]} 6. Nge2 {[%emt 0:00:19]} e5 {[%emt 0:05:30]} 7. O-O {[%emt 0:02:09]} Nc6 {[%emt 0:00:33]} 8. d5 {[%emt 0:05:40]} Ne7 {[%emt 0:00:15]} 9. h3 {[%emt 0:01:14]} c6 {[%emt 0:05:17]} 10. Kh2 {[%emt 0:09:39]} cxd5 {[%emt 0:03:05]} 11. exd5 {[%emt 0:01:10]} h5 {[%emt 0:00:42]} 12. f4 {[%emt 0:07:00]} Nf5 13. Ne4 {[%emt 0:07:06]} Nxe4 {[%emt 0:03:43]} 14. Bxe4 {[%emt 0:03:44]} Re8 15. Bg2 exf4 {[%emt 0:15:23]} 16. Nxf4 {[%emt 0:05:50]} h4 {[%emt 0:02:55]} 17. g4 {[%emt 0:01:49]} Ne3 {[%emt 0:01:53]} 18. Bxe3 {[%emt 0:00:19]} Rxe3 {[%emt 0:00:07]} 19. Qd2 {[%emt 0:01:36]} Re8 {[%emt 0:01:29]} 20. Nd3 {[%emt 0:03:24]} f5 {[%emt 0:23:48]} 21. Bf3 {[%emt 0:00:59]} Bd7 {[%emt 0:01:57]} 22. Rae1 {[%emt 0:02:39]} Qf6 {[%emt 0:02:43]} 23. g5 {[%emt 0:06:14]} Qd4 {[%emt 0:00:34]} 24. c3 {[%emt 0:00:35]} Qc4 {[%emt 0:04:27]} 25. a3 {[%emt 0:09:16]} Rxe1 {[%emt 0:06:14]} 26. Rxe1 {[%emt 0:00:31]} Re8 {[%emt 0:00:06]} 27. Rxe8+ {[%emt 0:05:27]} Bxe8 {[%emt 0:00:09]} 28. Qe3 {[%emt 0:03:53]} Bb5 {[%emt 0:07:59]} 29. Qe6+ {[%emt 0:03:05]} Kh7 {[%emt 0:00:09]} 30. Be2 {[%emt 0:00:52]} Qa4 {[%emt 0:08:17]} 31. b3 {[%emt 0:11:47]} Qe4 {[%emt 0:00:15]} 32. Qxe4 {[%emt 0:01:10]} fxe4 {[%emt 0:00:08]} 33. Nc1 {[%emt 0:01:01]} Bd7 {[%emt 0:00:26]} 34. Na2 {[%emt 0:00:26]} Be5+ {[%emt 0:00:21]} 35. Kg2 {[%emt 0:00:03]} Bf4 {[%emt 0:00:15]} 36. c4 {[%emt 0:00:20]} Bd2 {[%emt 0:01:42]} 37. Nb4 {[%emt 0:01:05]} Bxg5 {[%emt 0:00:09]} 38. Nc2 {[%emt 0:00:18]} Kg7 {[%emt 0:03:58]} 39. Nd4 {[%emt 0:00:39]} Kf6 {[%emt 0:00:11]} 40. Nb5 {[%emt 0:00:34]} Bxb5 {[%emt 0:00:13]} 41. cxb5 {[%emt 0:00:02]} Ke5 {[%emt 0:00:05]} 42. Bc4 {[%emt 0:00:04]} b6 {[%emt 0:00:18]} 43. Kf2 {[%emt 0:00:35]} Kd4 {[%emt 0:00:09]} 44. Ke2 {[%emt 0:00:24]} Bf4 {[%emt 0:00:31]} 45. Kf2 {[%emt 0:00:15]} g5 {[%emt 0:00:09]} 46. Ke2 {[%emt 0:00:45]} Kc3 {[%emt 0:00:13]} 47. Kf2 {[%emt 0:01:16]} g4 {[%emt 0:00:20]} 48. hxg4 {[%emt 0:00:20]} Kd2 {[%emt 0:00:13]} 0-1